bitfinex-derivatives/quotes_ETHF0:USTF0_20250116
["timestamp","ask_amount","ask_price","bid_price","bid_amount"]
[1737040183975,3.2078,3295.9,3295.4,3.2078]
[1737040184168,3.2078,3296.6,3295.7,3.28734095]
[1737040184369,3.2078,3296.6,3295.8,3.2078]
[1737040184775,3.2078,3296.6,3296.3,3.28734095]
[1737040185867,3.2078,3296.6,3295.8,3.2078]
[1737040185868,3.2078,3296.6,3295.8,6.49514095]
[1737040186070,3.2078,3296.6,3295.8,3.28734095]
[1737040186373,3.2078,3296.6,3295.4,3.2078]
[1737040187377,3.2078,3296.0,3295.4,3.2078]
[1737040188275,3.2078,3295.6,3294.9,7.77]
[1737040188470,3.2078,3295.6,3294.9,3.2078]
[1737040188666,3.2078,3295.1,3294.4,3.2078]
[1737040189572,3.2078,3294.7,3294.3,3.28734095]
[1737040190273,3.2078,3295.8,3294.4,3.2078]
[1737040190467,3.2078,3295.8,3294.8,3.28734095]
[1737040190675,3.2078,3295.4,3294.4,3.2078]
[1737040191178,3.2078,3295.6,3294.9,3.2078]
[1737040192481,3.2078,3295.6,3294.2,0.24032729]
[1737040192482,3.2078,3296.1,3295.3,6.49514095]
[1737040193176,3.2078,3295.7,3294.4,3.2078]
[1737040193386,4.8399,3296.5,3294.4,3.2078]
[1737040193387,3.2078,3295.3,3294.4,3.2078]
[1737040193577,3.2078,3295.3,3294.5,3.2078]
[1737040193778,3.2078,3295.3,3294.3,3.28734095]
[1737040194180,7.8111,3295.2,3294.1,3.2078]
[1737040194576,7.8111,3295.2,3294.3,3.28734095]
[1737040195382,4.6033,3295.2,3294.5,3.2078]
[1737040195580,3.2078,3295.6,3294.5,3.2078]
[1737040195781,3.2078,3295.6,3293.6,9.7931]
[1737040195782,7.9303,3296.0,3294.8,3.28734095]
[1737040196482,4.7225,3296.0,3294.3,6.49514095]
[1737040196682,3.2078,3295.6,3294.3,6.49514095]
[1737040196881,3.2078,3294.8,3294.3,6.49514095]
[1737040197075,3.2078,3294.8,3294.3,3.2078]
[1737040197491,3.2078,3294.8,3293.9,6.49514095]
[1737040197684,3.2078,3295.4,3293.9,6.49514095]
[1737040198285,3.2078,3295.0,3293.9,6.49514095]
[1737040198687,3.2078,3294.6,3293.9,6.49514095]
[1737040198892,3.2078,3294.2,3293.4,12.778134]
[1737040199392,3.2078,3294.9,3293.9,3.28734095]
[1737040199989,3.2078,3294.9,3294.4,3.28734095]
[1737040200382,3.2078,3294.9,3294.2,3.2078]
[1737040200589,3.2078,3294.9,3293.9,3.28734095]
[1737040201091,3.2078,3294.9,3294.3,3.2078]
[1737040201288,3.2078,3294.9,3293.9,3.28734095]
[1737040201995,3.2078,3294.9,3294.0,3.2078]
[1737040202783,3.2078,3294.5,3293.9,3.28734095]
[1737040203692,4.864,3295.5,3293.4,6.49514095]
[1737040203693,3.2078,3294.1,3293.4,6.49514095]
[1737040204090,4.7397,3295.4,3293.4,6.49514095]
[1737040204091,3.2078,3294.6,3293.4,6.49514095]
[1737040204291,3.2078,3294.6,3293.9,3.28734095]
[1737040204492,3.2078,3294.6,3293.4,6.49514095]
[1737040204692,3.2078,3294.2,3293.4,6.49514095]
[1737040204995,3.2078,3293.8,3292.9,3.28734095]
[1737040205297,3.2078,3293.3,3292.6,3.2078]
[1737040205499,3.2078,3293.3,3292.9,3.28734095]
[1737040205791,4.805,3294.0,3292.9,3.28734095]
[1737040205792,3.2078,3293.8,3293.0,3.2078]
[1737040205998,3.2078,3293.8,3293.4,3.28734095]
[1737040206395,3.2078,3293.8,3293.0,3.2078]
[1737040209294,4.9249,3294.1,3292.9,3.28734095]
[1737040209501,4.9249,3294.1,3292.6,3.2078]
[1737040209502,3.2078,3293.8,3292.6,3.2078]
[1737040209893,3.2078,3293.4,3292.6,3.2078]
[1737040210098,3.2078,3293.0,3292.2,3.2078]
[1737040210401,3.2078,3293.0,3291.9,3.28734095]
[1737040210595,3.2078,3293.0,3292.4,3.28734095]
[1737040210801,3.2078,3293.0,3292.9,3.28734095]
[1737040211495,3.2078,3293.7,3292.9,2.83319108]
[1737040212600,3.2078,3293.7,3293.1,3.2078]
[1737040214197,3.2078,3293.7,3293.6,2.83319108]
[1737040214395,3.2078,3294.5,3293.6,2.83319108]
[1737040214598,3.46728579,3294.8,3294.4,3.2078]
[1737040214797,3.46728579,3294.8,3294.7,2.83319108]
[1737040215304,4.6005,3296.0,3294.7,2.83319108]
[1737040215500,3.2078,3296.1,3295.7,2.83319108]
[1737040215804,4.7234,3296.3,3295.7,2.83319108]
[1737040215805,4.7234,3296.3,3295.8,3.2078]
[1737040216003,3.2078,3296.9,3295.8,3.2078]
[1737040216197,3.2078,3296.9,3296.5,2.83319108]
[1737040216400,4.7234,3297.1,3296.5,2.83319108]
[1737040216601,3.2078,3297.5,3296.9,6.04099108]
[1737040217403,3.2078,3297.5,3296.9,3.2078]
[1737040217701,3.45500436,3297.5,3296.9,6.47378153]
[1737040218101,3.45500436,3297.5,3297.3,3.2078]
[1737040218309,4.60667248,3297.7,3297.4,3.26598153]
[1737040218808,4.2061278,3297.7,3297.4,3.26598153]
[1737040219010,75.69116061,3305.7,3297.4,3.26598153]
[1737040219011,3.2078,3298.9,3297.4,3.26598153]
[1737040219203,3.2078,3298.9,3296.2,0.304]
[1737040219204,3.2078,3298.9,3298.2,2.99292782]
[1737040219405,4.2061278,3299.1,3298.4,6.47378153]
[1737040219905,4.2061278,3299.1,3298.8,3.2078]
[1737040220203,4.2061278,3299.1,3298.4,3.2078]
[1737040220812,3.2078,3298.8,3298.4,3.2078]
[1737040221004,3.2078,3299.2,3298.1,3.2078]
[1737040221508,3.2078,3298.8,3298.1,3.2078]
[1737040221704,3.2078,3298.8,3298.0,3.26598153]
[1737040222310,0.23770119,3300.7,3298.5,3.26598153]
[1737040222311,3.2078,3299.2,3298.5,3.26598153]
[1737040223410,3.2078,3299.2,3298.1,3.2078]
[1737040224013,3.2078,3298.8,3298.0,3.26598153]
[1737040224513,3.2078,3298.4,3297.4,9.551]
[1737040224710,3.2078,3298.0,3297.3,3.2078]
[1737040225011,3.2078,3298.9,3297.7,3.2078]
[1737040226412,3.2078,3298.5,3297.6,3.26598153]
[1737040226811,3.2078,3298.0,3297.6,3.26598153]
[1737040227112,3.2078,3298.8,3297.7,3.2078]
[1737040227314,3.2078,3298.8,3298.2,3.26598153]
[1737040227711,3.2078,3299.3,3298.2,3.26598153]
[1737040227913,3.2078,3299.3,3298.7,3.26598153]
[1737040230215,3.2078,3299.3,3297.5,9.8254]
[1737040230216,3.2078,3299.8,3299.0,3.2078]
[1737040230818,3.2078,3299.8,3298.6,3.2078]
[1737040231710,3.2078,3299.4,3298.6,3.2078]
[1737040232115,3.2078,3299.4,3298.2,3.2078]
[1737040232517,3.2078,3298.8,3298.2,3.2078]
[1737040233214,3.2078,3298.8,3297.8,3.2078]
[1737040233413,3.2078,3298.1,3297.5,4.9235]
[1737040233609,3.2078,3298.1,3297.4,3.2078]
[1737040233610,3.2078,3298.5,3297.4,3.2078]
[1737040233922,3.2078,3298.4,3297.4,3.2078]
[1737040234322,5.1183034,3300.2,3297.8,3.2078]
[1737040234323,3.2078,3298.6,3297.8,3.2078]
[1737040234717,3.2078,3298.2,3297.5,4.9348]
[1737040235715,3.2078,3298.2,3297.4,3.2078]
[1737040236415,3.2078,3297.7,3297.0,3.2078]
[1737040237212,3.2078,3297.3,3296.5,4.7621]
[1737040237411,3.2078,3296.9,3295.8,3.45463805]
[1737040237716,3.2078,3296.0,3295.4,3.2078]
[1737040237916,3.2078,3296.0,3295.0,3.2078]
[1737040238214,3.2078,3295.6,3294.6,3.2078]
[1737040239320,3.2078,3295.1,3294.6,3.2078]
[1737040239521,3.2078,3294.7,3293.8,3.2078]
[1737040239722,3.2078,3295.4,3293.8,3.2078]
[1737040239922,3.2078,3294.8,3293.8,3.2078]
[1737040240418,3.2078,3294.8,3294.2,3.2078]
[1737040240813,3.2078,3294.8,3293.8,3.2078]
[1737040241117,3.2078,3294.4,3293.4,7.8081]
[1737040241423,4.9228,3295.8,3293.4,4.6003]
[1737040241424,3.2078,3294.0,3293.4,4.6003]
[1737040241619,3.2078,3294.0,3293.0,3.2078]
[1737040241820,3.2078,3293.6,3292.6,3.2078]
[1737040242019,3.2078,3293.2,3292.6,3.2078]
[1737040242919,3.2078,3294.4,3293.0,3.2078]
[1737040243120,3.2078,3294.4,3293.4,3.2078]
[1737040243314,3.2078,3294.0,3293.0,3.2078]
[1737040243523,3.2078,3294.4,3293.0,3.2078]
[1737040243713,3.2078,3294.4,3293.4,3.2078]
[1737040244624,3.2078,3294.0,3293.4,3.2078]
[1737040244822,3.2078,3294.0,3292.9,3.2078]
[1737040245223,3.2078,3294.0,3293.4,3.27198025]
[1737040246219,3.2078,3294.0,3292.9,6.47978025]
[1737040247119,3.2078,3294.4,3293.9,3.27198025]
[1737040247325,3.2078,3294.4,3293.9,6.47978025]
[1737040247630,3.2078,3295.0,3293.9,6.47978025]
[1737040248032,3.2078,3295.0,3294.4,3.2078]
[1737040248223,3.2078,3295.0,3294.4,6.47978025]
[1737040248423,3.2078,3295.4,3294.4,6.47978025]
[1737040248920,3.2078,3295.4,3294.4,3.27198025]
[1737040249426,3.2078,3295.4,3294.6,3.2078]
[1737040249626,3.2078,3295.8,3294.9,3.27198025]
[1737040250131,3.2078,3295.8,3294.7,3.2078]
[1737040250432,3.2078,3295.4,3294.4,3.27198025]
[1737040251331,3.2078,3295.4,3294.3,3.2078]
[1737040251527,3.2078,3294.5,3293.9,8.09278025]
[1737040251724,3.2078,3294.5,3293.4,3.2078]
[1737040251924,3.2078,3294.5,3293.8,6.47978025]
[1737040252130,3.2078,3295.1,3293.8,6.47978025]
[1737040252331,4.6604,3295.6,3294.3,3.27198025]
[1737040252531,3.2078,3295.3,3294.3,3.27198025]
[1737040253128,3.2078,3295.7,3294.8,3.27198025]
[1737040253435,3.2078,3295.7,3293.3,4.78529458]
[1737040253436,3.2078,3296.3,3295.3,3.27198025]
[1737040253833,3.2078,3296.3,3295.9,3.27198025]
[1737040254734,3.2078,3296.3,3295.4,3.27198025]
[1737040255537,3.2078,3295.9,3295.2,3.2078]
[1737040256334,3.2078,3295.9,3294.9,3.27198025]
[1737040256536,3.2078,3295.5,3294.6,3.2078]
[1737040256733,3.2078,3294.9,3294.4,3.27198025]
[1737040256934,3.2078,3294.9,3293.6,0.304]
[1737040256935,3.2078,3294.5,3293.7,3.2078]
[1737040257153,3.2078,3294.5,3293.6,3.27198025]
[1737040257543,3.2078,3294.1,3293.6,3.27198025]
[1737040257848,3.2078,3294.1,3293.1,3.27198025]
[1737040259552,3.2078,3294.1,3293.6,3.27198025]
[1737040259753,3.2078,3294.1,3293.3,3.27198025]
[1737040260553,3.2078,3294.1,3293.3,6.47978025]
[1737040260749,3.2078,3294.1,3293.8,3.27198025]
[1737040261152,3.2078,3295.2,3293.8,8.27198025]
[1737040261349,3.2078,3295.5,3294.8,3.2078]
[1737040261550,3.2078,3295.5,3294.7,3.2078]
[1737040261748,3.2078,3295.1,3294.2,6.47978025]
[1737040261949,3.2078,3294.6,3293.7,3.27198025]
[1737040262155,3.2078,3294.1,3293.6,3.2078]
[1737040262555,3.2078,3294.5,3293.6,3.2078]
[1737040262757,3.2078,3294.5,3293.7,3.27198025]
[1737040263055,3.2078,3294.9,3294.4,3.2078]
[1737040263455,3.2078,3294.9,3294.7,3.27198025]
[1737040263847,3.2078,3294.9,3294.4,3.2078]
[1737040264853,3.2078,3294.9,3294.2,3.27198025]
[1737040265058,3.2078,3295.1,3294.2,3.27198025]
[1737040265657,3.2078,3295.2,3294.2,6.47978025]
[1737040265856,4.6986,3295.7,3294.2,6.47978025]
[1737040266057,3.2078,3295.4,3294.2,6.47978025]
[1737040266463,4.6986,3295.7,3294.2,6.47978025]
[1737040266464,3.2078,3295.2,3294.2,6.47978025]
[1737040266763,3.2078,3295.2,3294.7,3.27198025]
[1737040267658,4.9144,3296.2,3294.8,3.2078]
[1737040267659,3.2078,3295.6,3294.8,3.2078]
[1737040267960,3.2078,3295.6,3294.7,3.27198025]
[1737040267961,3.2078,3295.6,3294.4,3.2078]
[1737040268264,3.2078,3295.2,3294.4,3.2078]
[1737040268561,4.9144,3296.2,3294.4,3.2078]
[1737040268562,3.2078,3295.6,3294.4,3.2078]
[1737040268963,3.2078,3295.6,3294.3,9.6543]
[1737040268964,3.2078,3295.6,3294.8,3.2078]
[1737040269167,3.2078,3296.0,3295.3,3.2078]
[1737040269464,3.2078,3296.9,3295.9,3.2078]
[1737040269670,3.2078,3296.9,3295.9,6.47978025]
[1737040270160,7.7112,3297.3,3296.4,3.2078]
[1737040270357,7.17446656,3297.6,3296.8,3.2078]
[1737040270562,2.28666656,3297.6,3297.2,3.2078]
[1737040270764,2.28666656,3297.6,3294.8,1.3289853]
[1737040270765,3.2078,3297.6,3296.4,3.27198025]
[1737040270962,3.2078,3297.1,3296.2,3.2078]
[1737040271264,3.2078,3297.6,3296.6,3.2078]
[1737040271559,4.8505,3298.2,3296.6,3.2078]
[1737040271560,3.2078,3298.0,3296.6,3.2078]
[1737040271758,3.2078,3298.0,3297.0,3.2078]
[1737040271955,4.8505,3298.2,3297.6,3.2078]
[1737040272161,3.2078,3298.4,3297.6,3.2078]
[1737040272765,2.28666656,3299.4,3298.3,6.47978025]
[1737040272958,0.07193197,3299.4,3299.3,6.47978025]
[1737040273455,4.02664248,3299.7,3299.3,6.47978025]
[1737040273659,3.2078,3300.0,3299.3,6.47978025]
[1737040274459,3.2078,3299.6,3298.9,3.2078]
[1737040274964,3.2078,3299.6,3298.8,3.27198025]
[1737040277461,3.2078,3299.6,3298.5,3.2078]
[1737040277657,3.2078,3299.6,3298.5,6.47978025]
[1737040278463,3.2078,3299.6,3298.5,3.27198025]
[1737040278653,3.2078,3298.8,3298.5,3.27198025]
[1737040278859,3.2078,3298.8,3298.1,3.2078]
[1737040279059,3.2078,3298.8,3298.0,3.27198025]
[1737040279459,3.2078,3298.8,3298.5,3.27198025]
[1737040279762,3.2078,3299.4,3298.5,3.27198025]
[1737040281271,3.2078,3299.4,3299.0,3.27198025]
[1737040281472,3.2078,3299.9,3299.0,3.27198025]
[1737040281968,3.2078,3299.5,3298.5,3.27198025]
[1737040282465,3.2078,3299.5,3298.4,3.2078]
[1737040284366,3.2078,3299.1,3298.4,3.2078]
[1737040284871,3.2078,3298.7,3297.5,3.2078]
[1737040285068,3.2078,3298.3,3297.1,3.2078]
[1737040285768,3.2078,3298.3,3297.6,3.2078]
[1737040287776,4.704,3300.8,3297.0,3.2078]
[1737040287777,3.2078,3297.9,3297.0,3.2078]
[1737040287974,3.2078,3297.9,3297.4,3.2078]
[1737040288473,3.2078,3297.9,3296.8,3.2078]
[1737040289470,3.2078,3297.9,3297.2,3.2078]
[1737040290676,3.2078,3298.3,3297.2,3.2078]
[1737040290879,3.2078,3298.3,3297.6,3.2078]
[1737040292175,14.2258,3299.5,3297.7,3.2078]
[1737040292176,3.2078,3299.1,3297.7,3.2078]
[1737040292678,3.2078,3299.1,3298.1,3.2078]
[1737040292975,3.2078,3300.4,3298.8,3.2078]
[1737040293177,3.2078,3300.0,3298.8,3.2078]
[1737040293482,3.2078,3300.0,3297.3,4.8534]
[1737040293483,3.2078,3300.0,3298.9,3.2078]
[1737040293880,3.2078,3300.4,3299.7,3.2078]
[1737040296288,3.2078,3300.7,3299.7,3.2078]
[1737040296790,3.2078,3300.7,3299.8,3.25959791]
[1737040296981,3.2078,3301.1,3300.3,3.25959791]
[1737040297885,3.2078,3301.1,3300.5,3.2078]
[1737040298084,3.2078,3302.0,3300.9,3.2078]
[1737040298290,3.2078,3302.0,3301.4,3.25959791]
[1737040298580,3.2078,3302.0,3300.9,6.46739791]
[1737040299387,3.2078,3301.1,3300.9,3.25959791]
[1737040299582,3.2078,3301.1,3300.4,3.25959791]
[1737040299783,3.2078,3301.1,3300.3,3.2078]
[1737040299987,3.2078,3300.5,3299.9,3.25959791]
[1737040300189,3.2078,3300.9,3299.9,3.25959791]
[1737040300485,3.2078,3300.5,3299.9,3.25959791]
[1737040300689,3.2078,3300.5,3299.5,3.2078]
[1737040300988,3.2078,3300.5,3299.3,9.1611]
[1737040300989,4.6735,3301.0,3300.4,3.25959791]
[1737040301990,3.2078,3301.8,3300.5,3.2078]
[1737040302177,3.2078,3301.4,3300.9,3.25959791]
[1737040303782,3.2078,3301.4,3300.5,3.2078]
[1737040305284,3.2078,3301.4,3300.9,3.25959791]
[1737040305790,3.2078,3301.0,3300.9,3.25959791]
[1737040306185,3.2078,3301.0,3300.3,3.25959791]
[1737040306594,3.2078,3300.5,3299.8,3.25959791]
[1737040306786,3.2078,3299.9,3299.3,3.25959791]
[1737040306980,3.2078,3299.8,3299.3,3.25959791]
[1737040307587,3.2078,3299.4,3298.8,3.25959791]
[1737040308794,3.2078,3299.4,3299.3,3.25959791]
[1737040309493,3.2078,3299.4,3298.8,3.25959791]
[1737040310291,3.2078,3299.0,3298.8,3.25959791]
[1737040310887,3.2078,3299.0,3298.3,3.2078]
[1737040310888,3.2078,3299.0,3298.5,3.25959791]
[1737040311088,3.2078,3298.6,3298.5,3.25959791]
[1737040311289,3.2078,3298.6,3298.0,3.25959791]
[1737040311492,3.2078,3298.2,3298.0,3.25959791]
[1737040313793,3.2078,3298.6,3298.0,3.25959791]
[1737040313994,3.2078,3298.2,3298.0,3.25959791]
[1737040314392,3.2078,3298.2,3297.5,3.25959791]
[1737040314596,3.66828409,3300.2,3297.5,3.25959791]
[1737040314597,3.2078,3297.8,3297.5,3.25959791]
[1737040315198,3.2078,3298.2,3297.5,3.25959791]
[1737040315491,3.2078,3298.6,3298.0,3.25959791]
[1737040315695,0.0037591,3298.1,3298.0,3.25959791]
[1737040315995,0.0037591,3298.1,3297.5,3.25959791]
[1737040316198,3.2078,3297.8,3297.5,3.25959791]
[1737040317294,3.2078,3297.8,3297.0,3.25959791]
[1737040317601,3.2078,3297.1,3296.5,3.25959791]
[1737040317801,3.2078,3297.1,3295.9,10.54257976]
[1737040317802,3.2078,3296.6,3295.9,4.67733487]
[1737040317991,3.2078,3296.0,3295.9,4.67733487]
[1737040319109,8.2078,3296.0,3295.0,4.67733487]
[1737040319295,3.2078,3295.1,3295.0,4.67733487]
[1737040320899,3.2078,3295.1,3294.3,3.25959791]
[1737040321096,3.2078,3294.5,3294.3,3.25959791]
[1737040321291,3.2078,3294.5,3293.9,3.2078]
[1737040322206,3.2078,3294.5,3293.8,3.25959791]
[1737040322504,3.2078,3294.1,3293.8,3.25959791]
[1737040322897,3.2078,3295.1,3293.8,11.46739791]
[1737040323095,3.2078,3295.1,3294.7,3.25959791]
[1737040323799,8.2078,3295.1,3293.7,3.25959791]
[1737040324005,3.2078,3293.8,3293.7,3.25959791]
[1737040324601,3.2078,3294.3,3293.7,3.25959791]
[1737040325401,3.2078,3294.3,3293.8,1.486]
[1737040325604,3.2078,3294.8,3294.2,3.25959791]
[1737040325907,3.2078,3294.3,3293.8,1.486]
[1737040326099,3.2078,3293.9,3293.5,4.5504]
[1737040326305,3.2078,3294.4,3293.6,1.486]
[1737040326703,3.2078,3294.0,3293.5,4.5504]
[1737040326904,3.2078,3294.0,3293.6,1.486]
[1737040327207,3.2078,3294.0,3293.7,1.486]
[1737040328107,8.2078,3294.0,3292.5,7.9608]
[1737040328317,3.2078,3293.1,3292.3,3.25959791]
[1737040328607,3.2078,3293.1,3292.6,1.486]
[1737040329505,3.2078,3292.7,3292.6,1.486]
[1737040330610,3.2078,3292.7,3291.8,3.25959791]
[1737040330812,3.2078,3292.7,3291.9,1.486]
[1737040331105,3.2078,3292.7,3291.8,3.25959791]
[1737040331307,3.2078,3291.9,3291.7,12.75]
[1737040331509,3.2078,3291.9,3291.8,1.487]
[1737040332112,8.2078,3291.9,3291.1,1.487]
[1737040332303,3.2078,3291.2,3290.7,1.487]
[1737040332507,3.2078,3290.8,3290.7,1.487]
[1737040333511,3.2078,3290.8,3290.3,12.754]
[1737040333718,3.2078,3290.4,3290.3,16.01359791]
[1737040333912,4.7714,3291.7,3290.3,16.01359791]
[1737040333913,3.2078,3290.8,3290.3,17.50059791]
[1737040334121,3.2078,3291.5,3290.3,17.50059791]
[1737040334412,4.9456,3291.8,3290.3,17.50059791]
[1737040334413,3.2078,3290.5,3290.3,14.241]
[1737040334909,3.2078,3290.5,3290.3,12.754]
[1737040335109,3.2078,3290.5,3290.4,1.487]
[1737040336309,3.2078,3291.4,3290.4,1.487]
[1737040336516,3.2078,3291.4,3290.4,4.6948]
[1737040336815,3.2078,3291.4,3290.5,3.25959791]
[1737040337208,3.2078,3291.0,3290.4,1.487]
[1737040337609,3.2078,3290.5,3290.3,12.754]
[1737040337822,3.2078,3290.5,3289.4,4.644]
[1737040338015,3.2078,3289.9,3289.4,4.644]
[1737040338216,3.2078,3289.9,3289.5,1.488]
[1737040340214,3.2078,3289.9,3289.0,3.2078]
[1737040340421,3.2078,3289.5,3289.1,1.488]
[1737040341321,3.2078,3289.5,3289.2,1.488]
[1737040341513,3.2078,3289.3,3289.2,1.488]
[1737040343021,3.2078,3289.7,3289.2,1.488]
[1737040343422,3.2078,3289.3,3289.2,1.488]
[1737040344317,3.2078,3289.3,3288.1,16.03379791]
[1737040344318,3.2078,3289.3,3288.1,12.7742]
[1737040344523,3.2078,3288.9,3288.2,1.488]
[1737040345316,3.2078,3289.4,3288.6,3.2078]
[1737040345521,3.2078,3289.4,3288.2,4.6958]
[1737040346923,3.2078,3289.0,3288.2,4.6958]
[1737040348820,3.2078,3289.4,3288.2,4.6958]
[1737040349020,3.2078,3289.4,3288.7,3.2078]
[1737040349411,3.2078,3289.4,3288.8,1.488]
[1737040349924,3.2078,3290.6,3289.3,3.25959791]
[1737040350227,3.2078,3291.1,3290.4,3.25959791]
[1737040350424,3.2078,3291.1,3290.5,1.488]
[1737040350624,3.2078,3290.6,3290.5,1.488]
[1737040351225,3.2078,3290.6,3290.2,1.488]
[1737040351922,11.46739791,3290.6,3289.5,1.488]
[1737040352222,3.2078,3289.6,3289.1,1.488]
[1737040352428,3.2078,3289.2,3289.1,1.488]
[1737040353629,3.2078,3289.2,3289.0,1.488]
[1737040356031,3.2078,3289.2,3288.0,5.87916257]
[1737040356218,4.9241,3290.3,3287.7,1.488]
[1737040356219,3.2078,3288.3,3287.7,1.488]
[1737040356426,3.2078,3287.8,3287.5,1.488]
[1737040356730,3.2078,3287.8,3287.6,1.488]
[1737040356920,3.2078,3287.8,3287.7,1.488]
[1737040358228,8.2078,3287.8,3286.9,12.772]
[1737040358532,3.25959791,3288.1,3286.8,1.488]
[1737040358533,3.2078,3287.0,3286.8,1.488]
[1737040359823,3.2078,3287.0,3285.8,4.5715]
[1737040360024,3.2078,3286.2,3285.8,1.488]
[1737040361339,3.2078,3286.6,3285.8,1.488]
[1737040361533,3.2078,3287.2,3286.1,3.25959791]
[1737040361732,3.2078,3287.2,3286.2,3.2078]
[1737040361932,3.2078,3287.2,3286.1,3.25959791]
[1737040362327,4.6686,3287.7,3285.8,4.6958]
[1737040362328,3.2078,3287.7,3287.1,3.25959791]
[1737040362530,3.2078,3288.2,3287.2,1.489]
[1737040362831,3.2078,3287.4,3287.2,1.489]
[1737040363839,3.2078,3287.4,3286.4,1.489]
[1737040363840,4.6466,3287.3,3286.4,1.489]
[1737040364029,3.2078,3286.5,3286.4,1.489]
[1737040364630,3.2078,3286.5,3286.0,1.489]
[1737040364832,3.2078,3286.1,3286.0,1.489]
[1737040365538,3.2078,3286.1,3285.2,3.2078]
[1737040365851,3.2078,3286.1,3285.5,1.489]
[1737040366449,3.2078,3285.7,3285.6,1.489]
[1737040366855,3.2078,3286.1,3285.6,1.489]
[1737040367742,3.2078,3286.5,3285.6,7.95639791]
[1737040368050,3.2078,3286.5,3286.0,3.2078]
[1737040368245,3.2078,3286.9,3286.0,3.2078]
[1737040370647,3.2078,3286.9,3286.1,3.25959791]
[1737040371044,3.2078,3286.9,3285.6,1.489]
[1737040371045,3.2078,3286.9,3285.6,7.95639791]
[1737040371346,4.6466,3287.3,3286.1,3.25959791]
[1737040371551,3.2078,3287.8,3287.2,3.2078]
[1737040371849,4.9055,3288.5,3287.7,6.46739791]
[1737040372046,3.2078,3288.7,3287.8,1.489]
[1737040372254,9.4687,3289.3,3287.4,4.6003]
[1737040372255,3.2078,3288.2,3287.4,4.6003]
[1737040372444,3.2078,3288.0,3287.9,1.489]
[1737040373345,8.2078,3288.0,3287.3,12.783]
[1737040373550,3.2078,3287.4,3287.3,12.783]
[1737040374547,3.2078,3287.8,3287.3,12.783]
[1737040375352,3.2078,3287.4,3287.3,12.783]
[1737040375945,3.2078,3287.4,3286.3,3.2078]
[1737040376151,3.2078,3286.6,3285.9,12.782]
[1737040376353,3.2078,3286.6,3286.0,1.489]
[1737040376549,3.2078,3286.2,3286.0,1.489]
[1737040376855,3.2078,3286.2,3286.1,1.489]
[1737040377155,3.2078,3286.2,3286.0,1.488]
[1737040379350,3.2078,3286.6,3286.0,1.488]
[1737040380458,3.2078,3287.1,3286.0,1.488]
[1737040380859,3.2078,3287.1,3286.3,3.2078]
[1737040381154,3.2078,3287.1,3286.4,3.2078]
[1737040381352,3.2078,3287.1,3286.2,3.25959791]
[1737040381552,3.2078,3286.7,3286.3,1.489]
[1737040382059,3.2078,3286.7,3286.1,1.489]
[1737040382259,3.2078,3286.2,3286.1,1.489]
[1737040383155,3.2078,3286.7,3286.1,1.489]
[1737040384251,3.2078,3286.7,3286.2,1.489]
[1737040385366,3.2078,3286.3,3285.9,12.782]
[1737040385553,3.2078,3286.3,3286.0,1.489]
[1737040386660,3.2078,3286.7,3286.0,1.489]
[1737040386855,3.2078,3286.3,3286.0,1.489]
[1737040387057,3.2078,3286.3,3286.1,1.489]
[1737040388253,3.2078,3286.3,3285.9,12.782]
[1737040388451,3.2078,3286.3,3286.0,1.489]
[1737040388651,3.2078,3286.7,3286.0,1.489]
[1737040389453,3.2078,3286.7,3286.2,3.25959791]
[1737040389653,3.2078,3287.2,3286.5,3.2078]
[1737040389850,3.2078,3286.6,3285.9,12.782]
[1737040390064,3.2078,3286.2,3286.0,1.489]
[1737040390257,3.2078,3286.2,3285.9,12.782]
[1737040390463,3.2078,3286.2,3286.0,1.489]
[1737040391256,3.2078,3286.2,3285.9,14.271]
[1737040392160,4.4877,3286.1,3285.2,1.489]
[1737040392361,3.2078,3285.3,3285.2,1.489]
[1737040392557,3.2078,3285.3,3284.6,7.8493]
[1737040392862,3.2078,3285.3,3284.7,1.489]
[1737040393061,3.2078,3285.3,3284.7,4.74859791]
[1737040393258,3.2078,3285.3,3284.7,7.95639791]
[1737040393563,3.2078,3285.8,3285.2,3.25959791]
[1737040393766,3.2078,3286.3,3285.9,3.25959791]
[1737040393967,3.2078,3286.8,3286.0,1.489]
[1737040394265,2.29218968,3286.8,3286.0,1.489]
[1737040394762,3.2078,3286.5,3286.0,1.489]
[1737040395665,9.066,3287.3,3285.5,7.8697]
[1737040395666,3.2078,3286.1,3285.5,7.8697]
[1737040395854,3.2078,3285.7,3285.6,1.489]
[1737040396561,8.2078,3285.7,3284.5,12.786]
[1737040396768,3.2078,3284.9,3284.5,12.786]
[1737040397060,3.2078,3284.9,3284.6,1.489]
[1737040397758,8.2078,3284.9,3284.1,1.489]
[1737040397964,3.2078,3284.2,3284.1,1.489]
[1737040398765,8.2078,3284.2,3283.2,1.489]
[1737040398962,3.2078,3283.3,3283.2,1.489]
[1737040399462,3.2078,3283.3,3283.0,4.67733487]
[1737040399767,3.2078,3283.3,3283.1,1.489]
[1737040400268,3.2078,3283.3,3282.9,1.489]
[1737040400773,3.2078,3283.3,3282.2,9.6912]
[1737040401075,3.2078,3282.7,3282.3,1.489]
[1737040404575,3.2078,3283.3,3282.3,4.6968]
[1737040404770,3.2078,3283.3,3282.5,3.25959791]
[1737040404975,3.2078,3283.2,3282.5,3.25959791]
[1737040405177,3.2078,3283.2,3282.6,1.49]
[1737040405682,4.6708,3284.1,3283.0,3.25959791]
[1737040405976,3.2078,3284.4,3283.2,3.2078]